bitfinex-derivatives/quotes_SOLF0:USTF0_20250703
["timestamp","ask_amount","ask_price","bid_price","bid_amount"]
[1751527780253,10.07366015,155.45,155.41,185.48]
[1751527780650,10.07366015,155.45,155.42,6.4318]
[1751527783054,3.64246015,155.45,155.43,6.4315]
[1751527783754,10.07346015,155.45,155.43,6.4315]
[1751527784352,6.4307,155.46,155.43,6.4315]
[1751527784551,3.64246015,155.45,155.43,6.4315]
[1751527784956,6.4307,155.46,155.43,6.4315]
[1751527785156,3.64246015,155.45,155.43,6.4315]
[1751527786154,10.07336015,155.45,155.43,6.4315]
[1751527786559,10.07336015,155.45,155.42,6.4319]
[1751527787455,10.0733657,155.45,155.42,6.4319]
[1751527792258,6.4315,155.44,155.41,185.48]
[1751527792460,3.6424657,155.45,155.41,185.48]
[1751527793064,10.0736657,155.45,155.42,6.432]
[1751527795764,2.33118836,155.43,155.42,6.432]
[1751527800170,2.33118836,155.43,155.41,191.9123]
[1751527800472,2.33118836,155.43,155.41,185.48]
[1751527800671,2.33118836,155.43,155.42,6.4321]
[1751527801770,5.97280861,155.46,155.41,185.48]
[1751527802069,2.33064393,155.44,155.41,185.48]
[1751527802264,5.97280861,155.46,155.43,2.33064393]
[1751527802472,5.97280861,155.48,155.45,2.33064393]
[1751527802667,8.30345254,155.49,155.46,185.44]
[1751527803171,2.33064393,155.48,155.46,185.44]
[1751527803773,12.40210861,155.49,155.47,6.43]
[1751527805170,6.4293,155.49,155.47,6.43]
[1751527805670,5.97280861,155.5,155.48,6.4296]
[1751527805872,9.61270979,155.51,155.46,185.44]
[1751527806278,10.06850118,155.51,155.48,6.4293]
[1751527806471,10.06850118,155.51,155.46,185.44]
[1751527806878,10.06850118,155.51,155.48,6.4294]
[1751527807877,3.63990118,155.49,155.46,185.44]
[1751527808073,3.63990118,155.47,155.45,43.96]
[1751527808280,10.07020118,155.47,155.45,43.96]
[1751527808479,3.63990118,155.47,155.45,43.96]
[1751527809072,10.07020118,155.47,155.45,43.96]
[1751527810377,6.4303,155.47,155.45,43.96]
[1751527810579,6.4305,155.46,155.45,43.96]
[1751527810772,9.61270979,155.47,155.44,0.04901541]
[1751527810971,3.63990118,155.45,155.44,0.04901541]
[1751527812081,10.07080118,155.45,155.44,0.04901541]
[1751527813584,10.07080118,155.45,155.41,235.7922]
[1751527813585,3.63990118,155.45,155.28,16.02001081]
[1751527813781,3.63990118,155.4,155.36,600.1]
[1751527814082,3.63990118,155.38,155.36,600.1]
[1751527814380,3.63990118,155.38,155.36,606.5343]
[1751527816478,3.63990118,155.38,155.37,6.4342]
[1751527816684,0.04716545,155.39,155.36,600.1]
[1751527817284,0.04716545,155.39,155.38,6.4337]
[1751527817480,0.04716545,155.39,155.38,191.8737]
[1751527823587,10.07140118,155.44,155.41,6.4322]
[1751527823787,3.63990118,155.44,155.41,185.5]
[1751527824284,3.63990118,155.44,155.42,6.432]
[1751527824881,8.09540861,155.47,155.41,229.46]
[1751527824882,5.97280861,155.47,155.41,229.46]
[1751527825084,9.61270979,155.48,155.41,233.09990118]
[1751527825381,6.4303,155.47,155.44,6.4312]
[1751527826285,3.63990118,155.46,155.41,229.46]
[1751527826587,10.07060118,155.46,155.43,6.4316]
[1751527829088,3.63990118,155.46,155.41,229.46]
[1751527829289,5.97280861,155.48,155.41,229.46]
[1751527829484,10.07070118,155.46,155.43,6.4315]
[1751527829685,3.63990118,155.46,155.43,6.4315]
[1751527830090,6.4309,155.45,155.42,6.432]
[1751527835193,6.4313,155.44,155.42,6.432]
[1751527835494,6.4313,155.44,155.41,235.8924]
[1751527835791,5.97280861,155.48,155.41,43.96]
[1751527835991,3.63990118,155.42,155.41,43.96]
[1751527836294,3.63990118,155.42,155.38,185.44]
[1751527836495,6.4328,155.41,155.38,191.8735]
[1751527836796,6.4328,155.41,155.38,6.4335]
[1751527837197,3.63990118,155.4,155.37,50.374]
[1751527837400,3.63990118,155.4,155.37,43.94]
[1751527838291,3.63990118,155.4,155.38,6.4335]
[1751527839097,3.63990118,155.4,155.37,50.374]
[1751527839098,10.07290118,155.4,155.37,50.374]
[1751527839291,3.63990118,155.4,155.37,50.374]
[1751527839490,3.63990118,155.4,155.37,43.94]
[1751527839691,6.4334,155.39,155.37,43.94]
[1751527843599,10.07370118,155.38,155.37,43.94]
[1751527843799,3.63990118,155.38,155.37,43.94]
[1751527846302,10.07370118,155.38,155.37,43.94]
[1751527847498,10.07370118,155.38,155.35,185.46]
[1751527847996,10.07370118,155.38,155.34,185.46]
[1751527848405,3.63990118,155.38,155.34,185.46]
[1751527848601,3.63990118,155.38,155.36,6.4345]
[1751527849904,10.07370118,155.38,155.35,6.4348]
[1751527850711,10.07370118,155.38,155.34,185.46]
[1751527851610,10.07370118,155.38,155.35,6.4349]
[1751527852010,10.07370118,155.38,155.34,185.46]
[1751527852309,10.07370118,155.38,155.35,6.4349]
[1751527853912,6.4343,155.37,155.35,6.4349]
[1751527854515,10.07380118,155.38,155.35,6.4349]
[1751527854710,10.07380118,155.38,155.36,6.4345]
[1751527856415,6.4339,155.38,155.36,6.4345]
[1751527858116,3.63990118,155.4,155.37,6.4339]
[1751527859309,3.63990118,155.38,155.33,43.96]
[1751527859517,3.63990118,155.38,155.33,229.44]
[1751527860017,6.4342,155.37,155.35,6.4349]
[1751527860417,10.07410118,155.37,155.35,6.4349]
[1751527860914,10.07410118,155.37,155.34,191.9152]
[1751527863121,10.07410118,155.37,155.35,6.435]
[1751527863322,3.63990118,155.37,155.34,185.48]
[1751527863518,6.434,155.38,155.34,185.48]
[1751527863717,3.63990118,155.39,155.37,6.4342]
[1751527863919,10.07360118,155.39,155.34,185.48]
[1751527864123,3.63990118,155.39,155.34,185.48]
[1751527864526,6.4338,155.38,155.34,185.48]
[1751527864725,3.63990118,155.35,155.29,2.2452]
[1751527864927,10.07520118,155.35,155.32,43.96]
[1751527865424,10.07520118,155.35,155.32,50.396]
[1751527866226,3.63990118,155.35,155.33,6.4358]
[1751527866922,6.4348,155.36,155.34,6.4353]
[1751527867132,10.07470118,155.36,155.34,6.4353]
[1751527867730,3.63990118,155.39,155.32,43.96]
[1751527867929,3.63990118,155.39,155.33,5.90830118]
[1751527868131,6.4332,155.4,155.38,6.4335]
[1751527868321,3.63990118,155.43,155.37,43.96]
[1751527868730,6.4318,155.43,155.4,6.4326]
[1751527869732,3.63990118,155.43,155.37,43.96]
[1751527869928,3.63990118,155.41,155.37,229.48]
[1751527870427,10.07270118,155.41,155.38,6.4335]
[1751527873635,3.63990118,155.41,155.37,235.914]
[1751527874733,3.63990118,155.39,155.37,43.96]
[1751527876438,6.4338,155.38,155.37,43.96]
[1751527877728,10.07370118,155.38,155.37,43.96]
[1751527879139,6.4338,155.38,155.37,43.96]
[1751527879341,10.07370118,155.38,155.37,43.96]
[1751527881636,6.4342,155.37,155.36,0.04672407]
[1751527881838,3.63990118,155.34,155.29,185.6]
[1751527882141,3.63990118,155.34,155.3,2.2604]
[1751527882338,10.07480118,155.36,155.33,6.4358]
[1751527882942,10.11731013,155.36,155.33,6.4358]
[1751527883142,6.435,155.35,155.33,6.4358]
[1751527889055,3.63990118,155.34,155.3,2.2604]
[1751527889249,3.63990118,155.32,155.3,2.2604]
[1751527889642,3.63990118,155.32,155.29,4.3538]
[1751527889851,3.63990118,155.32,155.28,43.96]
[1751527890150,10.07630118,155.32,155.29,6.4373]
[1751527890849,10.07630118,155.32,155.28,43.96]
[1751527891458,10.07630118,155.32,155.29,6.4374]
[1751527893155,6.4368,155.31,155.28,50.3979]
[1751527894651,10.07630118,155.32,155.28,50.3979]
[1751527896050,6.4364,155.32,155.29,6.4374]
[1751527896250,3.63990118,155.31,155.29,6.4374]
[1751527898659,10.07670118,155.31,155.28,50.3978]
[1751527899058,10.07670118,155.31,155.28,43.96]
[1751527900464,3.63990118,155.31,155.29,6.4375]
[1751527902366,6.4371,155.3,155.28,50.3978]
[1751527902764,6.4371,155.3,155.28,43.96]
[1751527904062,6.4371,155.3,155.28,50.3979]
[1751527905764,10.07670118,155.31,155.28,50.3979]
[1751527906767,3.63990118,155.31,155.29,6.4375]
[1751527907062,3.63990118,155.31,155.28,43.96]
[1751527907267,3.63990118,155.32,155.28,43.96]
[1751527907663,10.07630118,155.32,155.29,6.4372]
[1751527911270,6.4368,155.31,155.28,50.3977]
[1751527912770,6.4368,155.31,155.28,43.96]
[1751527913071,3.63990118,155.3,155.28,43.96]
[1751527913269,3.63990118,155.3,155.28,50.3978]
[1751527913470,3.63990118,155.32,155.28,43.96]
[1751527913872,3.63990118,155.32,155.3,6.437]
[1751527914364,10.07610118,155.32,155.29,6.4373]
[1751527916974,3.63990118,155.32,155.3,6.437]
[1751527917175,6.47709274,155.33,155.3,6.437]
[1751527917372,10.11699392,155.33,155.3,6.437]
[1751527917771,10.11699392,155.33,155.31,6.4366]
[1751527917975,3.68099392,155.33,155.31,6.4366]
[1751527918468,3.68099392,155.33,155.32,6.4363]
[1751527918670,0.04109274,155.33,155.32,6.4363]
[1751527918868,3.63990118,155.37,155.3,189.2493279]
[1751527919073,3.63990118,155.37,155.35,6.4347]
[1751527920066,10.07420118,155.37,155.35,6.4347]
[1751527921182,3.63990118,155.37,155.35,6.4347]
[1751527921569,3.63990118,155.37,155.36,6.4346]
[1751527922071,5.98163728,155.4,155.34,3.63990118]
[1751527922268,9.62153846,155.41,155.34,3.63990118]
[1751527922675,6.4332,155.4,155.37,6.4339]
[1751527923674,10.07330118,155.39,155.36,6.4344]
[1751527924181,3.63990118,155.39,155.37,6.4341]
[1751527926080,6.4332,155.4,155.37,6.4341]
[1751527926276,10.07260118,155.41,155.38,6.4338]
[1751527926475,3.63990118,155.41,155.38,6.4338]
[1751527926780,3.63990118,155.39,155.33,43.98]
[1751527927579,3.63990118,155.39,155.37,6.4339]
[1751527930182,3.63990118,155.39,155.38,6.4338]
[1751527931880,3.63990118,155.39,155.37,6.4341]
[1751527932181,3.63990118,155.39,155.33,43.98]
[1751527932380,3.63990118,155.39,155.38,6.4338]
[1751527933477,3.63990118,155.39,155.33,43.98]
[1751527933984,3.63990118,155.39,155.37,6.434]
[1751527935288,10.07330118,155.39,155.37,6.434]
[1751527935781,3.63990118,155.39,155.37,6.434]
[1751527936879,3.63990118,155.39,155.35,6.4347]
[1751527937086,3.63990118,155.37,155.33,43.98]
[1751527937384,3.63990118,155.37,155.35,6.4349]
[1751527937687,3.63990118,155.37,155.33,43.98]
[1751527937887,3.63990118,155.37,155.34,6.4352]
[1751527938086,10.07430118,155.37,155.34,6.4352]
[1751527938481,5.98163728,155.43,155.33,43.98]
[1751527938687,3.63990118,155.41,155.33,47.61990118]
[1751527939084,6.4332,155.4,155.38,6.4338]
[1751527940082,3.63990118,155.41,155.35,3.63990118]
[1751527940289,3.63990118,155.43,155.36,4.5797]
[1751527940484,10.07180118,155.43,155.36,6.7271]
[1751527940684,10.07180118,155.43,155.41,6.4325]
[1751527941994,3.63990118,155.43,155.42,6.4321]
[1751527942990,3.63990118,155.43,155.41,6.4324]
[1751527943191,10.07170118,155.43,155.41,6.4324]
[1751527943884,10.07170118,155.43,155.4,6.4328]
[1751527943885,6.4322,155.42,155.4,6.4328]
[1751527944090,3.63990118,155.41,155.4,6.4328]
[1751527945788,3.63990118,155.41,155.39,50.3932]
[1751527945995,8.26693728,155.47,155.39,43.96]
[1751527946189,3.63990118,155.41,155.39,43.96]
[1751527947693,3.63990118,155.41,155.39,50.3931]
[1751527948996,6.4323,155.42,155.39,50.3931]
[1751527949190,3.63990118,155.41,155.39,50.3931]
[1751527949495,10.07250118,155.41,155.39,50.3931]
[1751527950196,3.63990118,155.41,155.39,50.3931]
[1751527952694,6.433,155.4,155.39,43.96]
[1751527952894,3.63990118,155.41,155.39,43.96]
[1751527953293,10.07270118,155.41,155.39,43.96]
[1751527954490,10.07270118,155.41,155.39,50.3933]
[1751527954696,10.07270118,155.41,155.39,43.96]
[1751527958008,6.433,155.4,155.39,43.96]
[1751527959007,10.07260118,155.41,155.39,43.96]
[1751527959409,6.4327,155.41,155.39,43.96]
[1751527959608,3.63990118,155.4,155.39,43.96]
[1751527961704,3.63990118,155.4,155.38,6.4338]
[1751527962202,3.63990118,155.4,155.36,50.6671]
[1751527962404,3.63990118,155.4,155.39,6.4334]
[1751527962608,6.4322,155.42,155.36,50.6671]
[1751527962609,3.63990118,155.42,155.36,50.6671]
[1751527962806,3.63990118,155.42,155.36,54.30700118]
[1751527963010,6.4319,155.43,155.4,6.4327]
[1751527963907,9.62153846,155.44,155.4,6.4327]
[1751527964210,6.4321,155.43,155.4,6.4327]
[1751527965111,6.4321,155.43,155.41,6.4325]
[1751527967705,16.05303846,155.44,155.41,6.4325]
[1751527967905,3.63990118,155.44,155.41,6.4325]
[1751527968209,6.4318,155.43,155.41,6.4325]
[1751527969716,3.63990118,155.43,155.41,6.4325]
[1751527970116,3.63990118,155.43,155.42,6.4321]
[1751527971320,10.07160118,155.43,155.41,6.4323]
[1751527972024,3.63990118,155.43,155.42,6.4321]
[1751527972222,3.63990118,155.44,155.42,6.4321]
[1751527972823,3.63990118,155.44,155.41,6.4323]
[1751527973525,10.07140118,155.44,155.41,6.4323]
[1751527975520,6.4318,155.43,155.41,6.4323]
[1751527976317,10.07130118,155.44,155.41,6.4323]
[1751527978925,6.4318,155.43,155.41,6.4323]
[1751527979628,10.07140118,155.44,155.42,6.432]
[1751527980429,10.07140118,155.44,155.41,6.4323]
[1751527980728,10.07140118,155.44,155.4,43.94]
[1751527981123,10.07140118,155.44,155.41,6.4325]
[1751527982620,6.4317,155.43,155.41,6.4325]
[1751527982825,6.4317,155.43,155.4,50.3728]
[1751527983124,3.63990118,155.42,155.4,50.3728]
[1751527984025,3.63990118,155.42,155.41,6.4325]
[1751527987129,3.63990118,155.42,155.4,43.94]
[1751527987522,3.63990118,155.43,155.41,6.4323]
[1751527987724,9.63103807,155.46,155.4,43.94]
[1751527987925,3.63990118,155.46,155.41,2.2798]
[1751527988130,3.63990118,155.46,155.44,6.431]
[1751527988431,3.63990118,155.46,155.41,6.5944]
[1751527988624,3.63990118,155.46,155.44,6.4311]
[1751527989331,3.63990118,155.46,155.41,6.5944]
[1751527989534,5.99113689,155.49,155.41,6.5944]
[1751527989733,3.63990118,155.47,155.41,6.5944]
[1751527990035,3.63990118,155.47,155.45,6.4305]
[1751527992938,3.63990118,155.47,155.46,6.4305]
[1751527994742,3.63990118,155.47,155.45,6.4307]
[1751527995945,2.33016242,155.46,155.45,6.4307]
[1751528007445,8.76066242,155.46,155.41,6.5944]
[1751528007651,2.33016242,155.42,155.4,43.94]
[1751528007853,2.33016242,155.41,155.4,43.94]
[1751528009148,2.33016242,155.41,155.4,50.3729]
[1751528009650,6.4319,155.43,155.41,6.4325]
[1751528009845,3.64377728,155.42,155.41,6.4325]
[1751528011057,5.99113689,155.47,155.4,43.94]
[1751528011246,3.64377728,155.45,155.4,43.94]
[1751528011750,3.64377728,155.45,155.43,6.4313]
[1751528012249,3.64377728,155.47,155.46,6.4304]
[1751528013256,10.07387728,155.47,155.45,6.4307]
[1751528013855,3.64377728,155.47,155.45,6.4307]
[1751528015052,10.07387728,155.47,155.45,6.4307]
[1751528015359,10.07387728,155.47,155.41,6.4978]
[1751528016460,10.07387728,155.47,155.44,6.4309]
[1751528017758,5.99113689,155.49,155.45,6.4307]
[1751528017961,3.64377728,155.47,155.45,6.4307]
[1751528018757,9.63491417,155.53,155.46,3.64377728]
[1751528018956,3.64377728,155.53,155.46,3.64377728]
[1751528019157,6.4282,155.52,155.49,6.4289]
[1751528019458,6.4282,155.52,155.46,3.64377728]
[1751528020563,6.4282,155.52,155.45,43.9]
[1751528021064,6.4282,155.52,155.46,3.64377728]
[1751528022557,6.4282,155.52,155.5,6.4288]
[1751528022762,10.07137728,155.53,155.46,3.64377728]
[1751528022962,10.07137728,155.53,155.47,2.1279]
[1751528023164,10.07137728,155.53,155.47,4.3226]
[1751528023360,3.64377728,155.55,155.47,4.3226]
[1751528023664,3.64377728,155.55,155.48,3.64377728]
[1751528024663,10.07077728,155.55,155.52,6.4277]
[1751528030267,3.64377728,155.55,155.53,6.4275]
[1751528032770,10.07057728,155.55,155.53,6.4275]
[1751528034169,3.64377728,155.55,155.53,6.4275]
[1751528037271,8.24555623,155.61,155.51,43.9]
[1751528037575,3.64377728,155.58,155.51,43.9]
[1751528037764,6.4264,155.56,155.53,6.4275]
[1751528037963,6.4264,155.56,155.51,43.9]
[1751528038263,10.07017728,155.56,155.51,43.9]
[1751528039569,3.64377728,155.56,155.54,6.4269]
[1751528039776,3.64377728,155.56,155.51,43.9]
[1751528040973,3.64377728,155.56,155.54,6.4269]
[1751528041475,3.64377728,155.56,155.55,6.4267]
[1751528041680,3.64377728,155.58,155.51,47.54377728]
[1751528041874,3.64377728,155.58,155.52,4.3515]
[1751528042077,3.64377728,155.58,155.55,6.4265]
[1751528042469,6.4262,155.57,155.54,6.4271]
[1751528043081,6.4262,155.57,155.52,4.3515]
[1751528043279,3.64377728,155.54,155.51,43.9]
[1751528043479,3.64377728,155.52,155.51,43.9]
[1751528045185,3.64377728,155.52,155.47,43.88]
[1751528046687,3.64377728,155.52,155.5,6.4286]
[1751528047385,3.64377728,155.52,155.51,6.4284]
[1751528057487,3.64377728,155.54,155.53,6.4273]
[1751528059385,3.64377728,155.56,155.55,6.4265]
[1751528060290,3.64377728,155.56,155.52,43.88]
[1751528060489,3.64377728,155.54,155.52,43.88]
[1751528060888,3.64377728,155.54,155.53,6.4275]
[1751528061386,3.64377728,155.54,155.52,43.88]
[1751528066395,3.64377728,155.54,155.52,50.3079]
[1751528067398,3.64377728,155.54,155.52,43.88]
[1751528069202,3.64377728,155.54,155.52,50.3079]
[1751528069694,3.64377728,155.54,155.52,43.88]
[1751528069999,10.07097728,155.54,155.52,43.88]
[1751528071803,6.4276,155.53,155.52,43.88]
[1751528072005,6.4276,155.53,155.48,43.88]
[1751528072207,3.64377728,155.52,155.48,43.88]
[1751528072409,3.64377728,155.52,155.49,6.4292]
[1751528072804,3.64377728,155.52,155.48,43.88]
[1751528073206,3.64377728,155.53,155.48,43.88]
[1751528073407,9.62663351,155.55,155.48,43.88]
[1751528073607,16.05363351,155.55,155.51,6.428]
[1751528074005,5.98285623,155.55,155.48,47.52377728]
[1751528074210,5.98285623,155.56,155.5,3.64377728]
[1751528074712,5.98285623,155.56,155.5,5.96967728]
[1751528075614,5.98285623,155.56,155.51,2.1338]
[1751528076314,5.98285623,155.56,155.54,6.4269]
[1751528076516,12.40925623,155.56,155.51,2.1338]
[1751528077618,12.40925623,155.56,155.53,6.4274]
[1751528078314,10.07057728,155.55,155.52,6.4279]
[1751528079715,3.64377728,155.55,155.53,6.4276]
[1751528080111,5.98285623,155.56,155.53,43.86]
[1751528080312,5.98285623,155.58,155.53,43.86]
[1751528080520,3.64377728,155.57,155.53,43.86]
[1751528081311,3.64377728,155.57,155.55,6.4265]
[1751528084918,6.4258,155.58,155.53,43.86]
[1751528084919,5.98285623,155.6,155.54,3.64377728]
[1751528085417,3.64377728,155.58,155.53,43.86]
[1751528085616,3.64377728,155.58,155.55,6.4265]
[1751528086011,10.06957728,155.58,155.54,6.4271]
[1751528086214,6.4258,155.58,155.53,43.86]
[1751528086419,3.64377728,155.58,155.53,43.86]
[1751528086617,10.06927728,155.58,155.55,6.4265]
[1751528086819,10.06927728,155.58,155.53,43.86]
[1751528087214,10.06927728,155.58,155.54,6.4269]
[1751528087721,6.4259,155.57,155.53,50.2873]
[1751528087914,3.64377728,155.58,155.53,43.86]
[1751528088116,3.64377728,155.56,155.53,43.86]
[1751528089324,10.07047728,155.56,155.53,50.2873]
[1751528089622,3.64377728,155.56,155.53,50.2873]
[1751528090523,10.07017728,155.56,155.53,50.2873]
[1751528090724,3.64377728,155.56,155.53,43.86]
[1751528091423,6.4269,155.55,155.53,43.86]
[1751528091922,10.07027728,155.56,155.53,43.86]
[1751528093120,6.426,155.57,155.54,6.4272]
[1751528093322,10.06977728,155.57,155.53,43.86]
[1751528093822,10.06977728,155.57,155.53,50.2873]
[1751528094415,12.40855623,155.58,155.55,6.4264]
[1751528094614,5.98285623,155.59,155.53,43.86]
[1751528094816,9.62663351,155.59,155.53,43.86]
[1751528095117,3.64377728,155.57,155.54,6.4271]
[1751528095321,3.64377728,155.57,155.53,43.86]
[1751528095619,3.64377728,155.57,155.55,6.4264]
[1751528096226,5.98285623,155.59,155.53,43.86]
[1751528096422,5.98285623,155.59,155.54,2.2238]
[1751528097025,5.98285623,155.59,155.56,6.426]
[1751528097222,5.98285623,155.59,155.54,2.2238]
[1751528097624,5.98285623,155.59,155.54,5.86757728]
[1751528097926,5.98285623,155.61,155.58,3.64377728]
[1751528098115,5.98285623,155.61,155.6,6.4247]
[1751528098322,5.98285623,155.62,155.59,46.1668]
[1751528098724,5.98285623,155.61,155.6,6.4247]
[1751528099226,5.98285623,155.63,155.59,49.81057728]
[1751528099433,5.98285623,155.67,155.61,3.64377728]
[1751528099621,5.98285623,155.67,155.62,2.2986]
[1751528099827,3.64377728,155.66,155.63,6.4234]
[1751528100024,5.98285623,155.67,155.63,6.4234]
[1751528100334,3.64377728,155.64,155.6,2.2106]
[1751528100929,3.69006459,155.64,155.6,2.2106]
[1751528101134,3.69006459,155.64,155.61,6.4242]
[1751528101326,3.69006459,155.64,155.6,2.2106]
[1751528101527,3.69006459,155.64,155.61,0.04175932]
[1751528102227,3.69006459,155.64,155.62,6.4238]
[1751528102525,3.69006459,155.64,155.61,0.04175932]
[1751528102833,0.04628731,155.64,155.63,6.4234]
[1751528107824,0.04628731,155.64,155.61,0.04175932]
[1751528108025,3.64377728,155.63,155.61,0.04175932]
[1751528108334,3.64377728,155.63,155.57,44.06]
[1751528108335,6.4245,155.61,155.57,44.06]
[1751528108532,3.64377728,155.59,155.58,6.4255]
[1751528109325,10.45425623,155.66,155.57,44.06]
[1751528109531,0.04824704,155.6,155.57,44.06]
[1751528109728,3.64377728,155.63,155.57,44.06]
[1751528109934,7.97551637,155.7,155.63,6.4234]
[1751528109935,10.06627728,155.66,155.63,6.4234]
[1751528112135,6.4231,155.64,155.58,2.1136]
[1751528112335,10.06687728,155.64,155.58,2.1136]
[1751528112536,3.64377728,155.64,155.58,2.1136]
[1751528112936,3.64377728,155.65,155.58,2.1136]
[1751528113138,3.64377728,155.67,155.59,3.64377728]
[1751528113936,6.4223,155.66,155.59,3.64377728]
[1751528114446,6.4223,155.66,155.63,6.4232]
[1751528114844,10.06577728,155.67,155.62,44.06]
[1751528115138,3.64377728,155.67,155.62,44.06]
[1751528115344,10.06577728,155.67,155.64,6.4228]
[1751528116140,3.64377728,155.65,155.58,2.1136]
[1751528116343,3.64377728,155.63,155.58,2.1136]
[1751528116843,3.64377728,155.63,155.6,6.4244]
[1751528117651,3.64377728,155.63,155.61,6.4241]
[1751528117842,3.64377728,155.65,155.58,2.1136]
[1751528118245,6.4227,155.65,155.58,2.1136]
[1751528118747,6.4227,155.65,155.62,6.4235]
[1751528118947,6.4227,155.65,155.62,44.04]
[1751528119747,10.06617728,155.66,155.63,6.4232]
[1751528120145,10.06617728,155.66,155.64,6.423]
[1751528120447,10.06617728,155.66,155.62,44.04]
[1751528121246,10.06617728,155.66,155.63,6.4231]
[1751528121643,3.64377728,155.66,155.62,44.04]
[1751528122050,4.4714,155.7,155.62,44.04]
[1751528122251,3.64377728,155.67,155.62,44.04]
[1751528122454,10.06567728,155.67,155.64,6.4228]
[1751528123048,6.4222,155.66,155.63,6.4233]
[1751528123255,3.64377728,155.67,155.62,44.04]
[1751528123657,3.64377728,155.67,155.64,6.4229]
[1751528125259,10.06577728,155.67,155.64,6.4229]
[1751528127960,6.422,155.67,155.65,6.4226]
[1751528128155,10.06577728,155.67,155.65,6.4226]
[1751528128356,10.06577728,155.67,155.62,44.04]
[1751528128557,10.06577728,155.67,155.64,6.4227]
[1751528128860,10.06577728,155.67,155.62,44.04]
[1751528129462,3.64377728,155.65,155.62,44.04]
[1751528129763,3.64377728,155.67,155.62,44.04]
[1751528130564,6.4223,155.66,155.62,44.04]
[1751528130761,3.64377728,155.67,155.64,6.4228]
[1751528131164,10.06577728,155.67,155.64,6.4228]
[1751528131767,6.4223,155.66,155.64,6.4228]
[1751528131964,3.64377728,155.67,155.64,6.4228]
[1751528132265,10.06577728,155.67,155.64,6.4228]
[1751528134472,6.4222,155.66,155.64,6.4228]
[1751528134868,3.64377728,155.65,155.62,44.04]
[1751528135257,3.64377728,155.65,155.62,50.4636]
[1751528135461,10.06677728,155.65,155.62,50.4636]
[1751528135965,6.4232,155.64,155.62,44.04]
[1751528137067,10.06657728,155.65,155.62,50.4636]
[1751528137670,6.4228,155.65,155.63,6.4233]
[1751528137869,10.06657728,155.65,155.63,6.4233]
[1751528138060,6.4223,155.66,155.63,6.4233]
[1751528138261,3.64377728,155.67,155.62,44.04]
[1751528139069,8.22005623,155.7,155.62,44.04]
[1751528139270,3.64377728,155.67,155.62,44.04]
[1751528139469,3.64377728,155.67,155.64,6.4227]
[1751528139871,8.22005623,155.7,155.64,6.4227]
[1751528140072,10.06557728,155.67,155.64,6.4227]
[1751528140272,3.64377728,155.67,155.64,6.4227]
[1751528140571,10.06577728,155.67,155.64,6.4227]
[1751528140770,3.64377728,155.65,155.62,44.04]
[1751528140966,10.06667728,155.65,155.62,44.04]
[1751528141169,3.64377728,155.65,155.62,44.04]
[1751528141362,3.64377728,155.65,155.62,50.4637]
[1751528141568,3.64377728,155.65,155.62,44.04]
[1751528141863,3.64377728,155.63,155.62,44.04]
[1751528142068,10.06717728,155.63,155.62,44.04]
[1751528142672,3.64377728,155.63,155.56,2.3171]
[1751528142973,3.64377728,155.6,155.57,44.14]
[1751528143170,3.64377728,155.58,155.57,44.14]
[1751528143476,3.64377728,155.58,155.57,50.5659]
[1751528143660,3.64377728,155.58,155.57,44.14]
[1751528143867,10.06927728,155.58,155.57,44.14]
[1751528144066,3.64377728,155.58,155.57,44.14]
[1751528145770,10.06927728,155.58,155.57,44.14]
[1751528146974,3.64377728,155.58,155.57,44.14]
[1751528149578,10.06927728,155.58,155.57,44.14]
[1751528150168,6.4263,155.57,155.54,6.427]
[1751528150478,3.64377728,155.58,155.53,599.44]
[1751528150672,6.4258,155.58,155.55,6.4266]
[1751528150870,10.06957728,155.58,155.55,6.4266]
[1751528151379,6.426,155.57,155.54,6.427]